[Event "VIII Open Semana Santa 2024"]
[Site "San Vicente del Raspeig"]
[Date "2024.03.31"]
[Round "7.3"]
[White "Kourkoulos-Arditis, Stamatis"]
[Black "Shuvalova, Polina"]
[Result "1/2-1/2"]
[ECO "C77"]
[WhiteElo "2556"]
[BlackElo "2455"]
[Annotator "TA"]
[PlyCount "116"]
[EventDate "2024.03.27"]
[EventType "swiss"]
[EventCountry "ESP"]
[SourceTitle "playchess.com"]
[Source "ChessBase"]
[SourceQuality "1"]
[TimeControl "5400+30"]

{[%evp 13,116,20,39,21,36,20,25,12,59,12,45,20,41,37,47,20,26,15,12,12,19,15,13,20,20,7,5,3,19,17,3,0,0,9,12,22,8,0,0,0,0,-7,-8,0,0,-60,-47,-38,-57,-89,-62,-110,-97,-117,-112,-113,-121,-162,-166,-173,-170,-175,-170,-168,-165,-185,-172,-294,-284,-169,-79,-79,-79,-92,-100,-114,-63,-65,-52,-70,-69,-70,-50,-35,-25,-21,-26,-27,-22,-20,0,0,0,-14,-12,-11,0,0,0,0,0,0,0,0,0]} 1. e4 {[%emt 0:03:07]} e5 {[%emt 0:00:05]} 2. Nf3 {[%emt 0:00:04]} Nc6 {[%emt 0:00:03]} 3. Bb5 {[%emt 0:00:11]} a6 {[%emt 0:00:04]} 4. Ba4 {[%emt 0:00:07]} Nf6 {[%emt 0:00:05]} 5. d3 {[%emt 0:00:26]} b5 {[%emt 0:04:31]} 6. Bb3 {[%emt 0:00:07]} Be7 {[%emt 0:01:58]} 7. a4 {[%emt 0:00:18]} Rb8 {[%emt 0:00:30]} 8. axb5 {[%emt 0:00:27]} axb5 {[%emt 0:00:04]} 9. Nc3 {[%emt 0:02:11]} d6 {[%emt 0:01:57]} 10. Nd5 {[%emt 0:00:52] White has an edge.} O-O {[%emt 0:08:16]} (10... Nxd5 $11 11. Bxd5 Nb4) 11. O-O {[%emt 0:02:27]} (11. c3 $14 {should be considered.}) 11... h6 {[%emt 0:01:46]} 12. h3 {[%emt 0:07:14]} Re8 {[%emt 0:01:52]} 13. c3 {[%emt 0:00:20]} Bf8 {[%emt 0:00:28]} 14. Re1 {[%emt 0:02:43]} Nxd5 {[%emt 0:06:52]} 15. Bxd5 {[%emt 0:04:05]} Ne7 {[%emt 0:01:31]} 16. Ba2 {[%emt 0:03:53]} b4 {[%emt 0:05:01]} 17. Bc4 {[%emt 0:03:13]} bxc3 {[%emt 0:01:30]} 18. bxc3 {[%emt 0:00:06]} Ng6 {[%emt 0:02:20]} 19. Ra7 {[%emt 0:01:29]} Be6 {[%emt 0:03:23]} 20. Qa4 {[%emt 0:04:06]} d5 {[%emt 0:19:50]} 21. Bb5 {[%emt 0:10:31]} Re7 {[%emt 0:00:18]} 22. Bc6 {[%emt 0:00:24] Hoping for Ba3.} dxe4 {[%emt 0:01:21]} 23. dxe4 {[%emt 0:00:46]} Bb3 {[%emt 0:02:52]} 24. Qa5 {[%emt 0:02:09]} Qd6 {[%emt 0:11:38]} 25. Ra8 {[%emt 0:05:57]} Rxa8 {[%emt 0:02:46]} 26. Qxa8 {[%emt 0:00:11] Threatens to win with Ba3.} Re6 {[%emt 0:01:14]} 27. Bd5 {[%emt 0:04:42]} Bxd5 {[%emt 0:00:21]} 28. exd5 {[%emt 0:00:06]} Rf6 {[%emt 0:00:15]} 29. Nd2 {[%emt 0:01:57]} ({White should try} 29. Be3 $11) 29... Qa6 $15 {[%emt 0:00:27]} 30. Qxa6 {[%emt 0:15:17]} Rxa6 {[%emt 0:02:59]} 31. g3 {[%emt 0:08:35]} Ra2 {[%emt 0:01:50]} 32. Nf3 {[%emt 0:02:07] [#]} (32. Nc4 $15) 32... f6 $1 $17 {[%emt 0:03:01]} 33. Be3 {[%emt 0:00:57] [#]} Ne7 $1 {[%emt 0:00:17]} 34. c4 {[%emt 0:01:34]} Nf5 {[%emt 0:00:08]} 35. Bd2 {[%emt 0:02:34]} Bc5 {[%emt 0:00:06]} 36. Kf1 {[%emt 0:00:05]} Nd6 {[%emt 0:02:10][%cal Oe5e4] ...e4! is the strong threat.} 37. Be3 {[%emt 0:00:23]} Bxe3 {[%emt 0:00:13]} 38. Rxe3 $19 {[%emt 0:00:04][%mdl 4096] Endgame. KRN-KRN} Rc2 {[%emt 0:00:08]} (38... Nxc4 39. Rc3 Nb6 40. Rc5 $11) 39. Ra3 {[%emt 0:02:18]} Ne4 {[%emt 0:02:20]} 40. Nh4 {[%emt 0:00:38]} (40. Ke1 $142) 40... g5 {[%emt 0:03:13]} ({Weaker is} 40... Nxf2 41. Ra7 $17) (40... Rxc4 41. Nf5 $17) 41. Ng2 {[%emt 0:01:54]} (41. Ra8+ {is a better defense.} Kh7 42. Ng2) 41... Nd2+ {[%emt 0:03:26]} ({Much weaker is} 41... Rxc4 $6 42. Ne3 Rc1+ 43. Ke2 $11) ({Stronger than} 41... Nxf2 42. Ra8+ Kf7 43. Ne3 $11) (41... Rxf2+ $19 {has better winning chances.} 42. Kg1 f5) 42. Ke1 $17 {[%emt 0:00:11]} Nxc4 {[%emt 0:00:53]} 43. Ra8+ {[%emt 0:00:32]} Kf7 {[%emt 0:07:58]} 44. Rd8 {[%emt 0:00:36]} Nd6 {[%emt 0:00:00]} ({Black should play} 44... Ke7 $17 45. Rh8 Nb2) 45. Ne3 $15 {[%emt 0:00:15]} Rc1+ {[%emt 0:00:00]} 46. Ke2 {[%emt 0:00:17]} f5 {[%emt 0:00:00]} 47. Rd7+ {[%emt 0:01:12]} Kf6 {[%emt 0:00:00]} 48. Rh7 {[%emt 0:00:06]} Kg6 {[%emt 0:00:00]} (48... h5 $5 49. Rh6+ Kg7 50. Rxh5 f4 $17) 49. Re7 {[%emt 0:00:05]} e4 {[%emt 0:00:00]} 50. Re6+ {[%emt 0:00:13]} Kg7 {[%emt 0:00:00]} 51. Re7+ {[%emt 0:03:14] The position is equal.} Kf6 {[%emt 0:00:00]} 52. Re6+ {[%emt 0:00:04]} Kg7 {[%emt 0:00:00]} 53. Re7+ $1 {[%emt 0:00:05]} Kf8 {[%emt 0:00:28]} 54. Re6 {[%emt 0:00:16]} Kf7 {[%emt 0:00:40]} 55. Rxh6 {[%emt 0:00:14]} f4 {[%emt 0:00:05]} 56. gxf4 {[%emt 0:00:05]} gxf4 {[%emt 0:00:03]} 57. Ng4 {[%emt 0:00:11]} Rc5 {[%emt 0:02:14]} 58. Rf6+ {[%emt 0:01:36]} Ke7 {[%emt 0:00:06] White happily takes the draw.   Weighted Error Value: White=0.13 (very precise) /Black=0.08 (flawless) .  Mistake:       	White=5     	Black=3      Inaccurate:     	White=3     	Black=2      OK:         	White=15    	Black=23     Best:        	White=3     	Black=4      Strong:       	White=1     	Black=2} 1/2-1/2

[Event "VIII Open Semana Santa 2024"]
[Site "San Vicente del Raspeig"]
[Date "2024.03.31"]
[Round "7.4"]
[White "Espinosa Aranda, Angel"]
[Black "Ivanchuk, Vasyl"]
[Result "1/2-1/2"]
[ECO "C01"]
[WhiteElo "2440"]
[BlackElo "2625"]
[Annotator "TA"]
[PlyCount "62"]
[EventDate "2024.03.27"]
[EventType "swiss"]
[EventCountry "ESP"]
[SourceTitle "playchess.com"]
[Source "ChessBase"]
[SourceQuality "1"]
[TimeControl "5400+30"]

{[%evp 16,62,20,20,24,14,22,17,18,18,26,17,22,14,42,34,32,31,29,39,43,36,64,52,54,18,37,0,0,-14,0,0,0,0,0,0,0,0,0,-3,0,0,0,0,0,0,44,38,61]} 1. e4 {[%emt 0:00:05]} e6 {[%emt 0:00:03]} 2. d4 {[%emt 0:00:50]} d5 {[%emt 0:00:05]} 3. exd5 {[%emt 0:00:52]} exd5 {[%emt 0:00:05]} 4. Nf3 {[%emt 0:00:08]} Bd6 {[%emt 0:00:17]} 5. c4 {[%emt 0:01:11]} c6 {[%emt 0:00:05]} 6. Nc3 {[%emt 0:01:01]} Ne7 {[%emt 0:00:02]} 7. Bd3 {[%emt 0:02:02]} O-O {[%emt 0:03:39]} 8. O-O {[%emt 0:00:13]} dxc4 {[%emt 0:00:03]} 9. Bxc4 {[%emt 0:00:13]} Nd7 {[%emt 0:00:02]} 10. Bg5 {[%emt 0:04:06]} Nb6 {[%emt 0:15:25]} 11. Bb3 {[%emt 0:04:49]} Kh8 {[%emt 0:00:30] The position is equal.} 12. Bxe7 {[%emt 0:08:51]} Qxe7 {[%emt 0:00:28]} 13. Re1 {[%emt 0:00:07][%cal Bf1e1,Be1e5,Be5e3][%mdl 32]} Qc7 {[%emt 0:00:02]} 14. Qd3 {[%emt 0:00:34]} Bg4 {[%emt 0:13:02]} 15. Ne5 {[%emt 0:06:36]} Bxe5 {[%emt 0:01:14]} 16. Rxe5 {[%emt 0:01:51]} f6 {[%emt 0:03:15]} 17. Re3 {[%emt 0:03:57]} Rad8 {[%emt 0:09:25]} 18. Rae1 {[%emt 0:03:44]} Qd6 {[%emt 0:03:21]} 19. Re7 {[%emt 0:01:57]} Rd7 {[%emt 0:02:43]} 20. Re8 {[%emt 0:09:08] [#] aiming for Qg3.} (20. Bc2 $5 f5 21. Qe3 $16) 20... Bh5 {[%emt 0:02:47]} 21. Rxf8+ {[%emt 0:07:39]} (21. Bc2 $5 g5 22. Rxf8+ Qxf8 23. Qh3 $11) 21... Qxf8 {[%emt 0:00:12]} 22. Qe4 {[%emt 0:02:22]} Bf7 {[%emt 0:04:14]} 23. Bxf7 {[%emt 0:02:42]} Qxf7 {[%emt 0:00:18]} 24. Qe8+ {[%emt 0:01:45]} Qg8 {[%emt 0:00:01]} 25. Qh5 {[%emt 0:00:30] [#] Re8 would now be deadly.} g6 {[%emt 0:00:30]} 26. Qc5 {[%emt 0:02:17]} Qd8 {[%emt 0:16:19] Dodges Re7} 27. a4 {[%emt 0:05:57][%cal Ba2a4,Ba4a5][%mdl 32]} a6 {[%emt 0:00:29]} 28. g3 {[%emt 0:06:05]} Kg7 {[%emt 0:07:23]} 29. a5 {[%emt 0:03:14]} Nc8 {[%emt 0:00:10][%cal Bb6c8,Bc8e7,Be7d5][%mdl 32]} 30. Qb4 {[%emt 0:00:51]} Ne7 {[%emt 0:02:56][%cal Oe7f5]} 31. Ne4 {[%emt 0:01:22]} Nd5 {[%emt 0:00:03] Weighted Error Value: White=0.08 (flawless) /Black=0.07 (flawless) .  Inaccurate:     	White=2     	Black=3      OK:         	White=13    	Black=9      Best:        	---       	Black=1} 1/2-1/2

[Event "VIII Open Semana Santa 2024"]
[Site "San Vicente del Raspeig"]
[Date "2024.03.31"]
[Round "7.5"]
[White "Yuffa, Daniil"]
[Black "Vetokhin, Savva"]
[Result "1-0"]
[ECO "D38"]
[WhiteElo "2606"]
[BlackElo "2427"]
[Annotator "TA"]
[PlyCount "69"]
[EventDate "2024.03.27"]
[EventType "swiss"]
[EventCountry "ESP"]
[SourceTitle "playchess.com"]
[Source "ChessBase"]
[SourceQuality "1"]
[TimeControl "5400+30"]

{[%evp 18,69,20,1,10,0,18,6,8,0,3,-15,0,0,19,14,17,26,34,27,79,65,80,73,81,84,83,74,99,96,106,106,119,122,127,116,115,105,178,190,185,184,216,216,269,241,316,320,332,308,364,329,737,530]} 1. d4 {[%emt 0:02:28]} Nf6 {[%emt 0:00:15]} 2. c4 {[%emt 0:00:42]} e6 {[%emt 0:00:08]} 3. Nf3 {[%emt 0:00:06]} d5 {[%emt 0:00:05]} 4. Nc3 {[%emt 0:00:04]} Bb4 {[%emt 0:00:15]} 5. Bg5 {[%emt 0:00:06]} h6 {[%emt 0:00:27]} 6. Bxf6 {[%emt 0:00:12]} Qxf6 {[%emt 0:00:07]} 7. e3 {[%emt 0:00:12]} O-O {[%emt 0:00:16]} 8. Rc1 {[%emt 0:00:06]} dxc4 {[%emt 0:00:25]} 9. Bxc4 {[%emt 0:00:05]} c5 {[%emt 0:00:04]} 10. O-O {[%emt 0:00:11] Ne4 is the strong threat.} cxd4 {[%emt 0:00:05]} 11. Ne4 {[%emt 0:00:10]} Qe7 {[%emt 0:00:53]} 12. a3 {[%emt 0:00:21]} Ba5 {[%emt 0:00:07] The position is equal.} 13. exd4 {[%emt 0:00:29]} Rd8 {[%emt 0:06:53]} 14. Rc2 {[%emt 0:01:07]} Nc6 {[%emt 0:16:14][%cal Oc6d4]} 15. Ba2 {[%emt 0:00:15]} Bb6 {[%emt 0:04:08]} 16. Rd2 {[%emt 0:06:03]} Bd7 {[%emt 0:01:08]} 17. Nc3 {[%emt 0:09:24]} Qf8 {[%emt 0:07:30]} 18. Re1 {[%emt 0:05:40]} Rac8 {[%emt 0:02:40]} (18... Re8 $11) 19. d5 $16 {[%emt 0:03:45] White leaves nothing to chance now.} exd5 {[%emt 0:00:05]} 20. Nxd5 {[%emt 0:00:16]} Bg4 {[%emt 0:04:57]} 21. h3 {[%emt 0:02:10]} Bxf3 {[%emt 0:06:14]} 22. Qxf3 {[%emt 0:00:17]} Re8 {[%emt 0:00:34]} 23. Red1 {[%emt 0:04:31]} Ne5 {[%emt 0:08:30]} 24. Qf5 {[%emt 0:08:06]} Rc6 {[%emt 0:16:10]} 25. Re2 {[%emt 0:14:50]} Ng6 {[%emt 0:02:28]} 26. Rde1 {[%emt 0:07:42] White has more active pieces.} Rxe2 {[%emt 0:03:42]} 27. Rxe2 {[%emt 0:00:06]} Rd6 {[%emt 0:04:39]} (27... Qb8 $16 {is a better defense.} 28. Re1 Bd4) 28. g3 $18 {[%emt 0:02:37] Black is weak on the light squares} Bd8 {[%emt 0:05:22]} 29. Qc8 $36 {[%emt 0:03:55][%mdl 2048] Black is under strong pressure.} b5 {[%emt 0:02:03]} 30. h4 {[%emt 0:02:09]} h5 {[%emt 0:04:19]} 31. b4 {[%emt 0:02:56]} Be7 {[%emt 0:01:29]} 32. Qf5 {[%emt 0:01:47]} ({Less strong is} 32. Nxe7+ Nxe7 33. Qb7 Nf5 $18) 32... Bf6 {[%emt 0:02:35]} 33. Qxh5 {[%emt 0:01:05]} a6 {[%emt 0:01:12]} 34. Bb1 {[%emt 0:05:21]} Bd8 $2 {[%emt 0:00:59] [#]} (34... Qd8 35. Bxg6 fxg6 36. Qxg6 Be5) 35. Qf5 {[%emt 0:00:36] Weighted Error Value: White=0.04 (flawless) /Black=0.21 (precise) .  Mistake:       	---       	Black=3      Inaccurate:     	---       	Black=1      OK:         	White=13    	Black=10     Best:        	White=1     	---} 1-0

[Event "VIII Open Semana Santa 2024"]
[Site "San Vicente del Raspeig"]
[Date "2024.03.31"]
[Round "7.6"]
[White "Ceres, Dragos"]
[Black "Badelka, Olga"]
[Result "0-1"]
[ECO "C11"]
[WhiteElo "2482"]
[BlackElo "2377"]
[Annotator "RC"]
[PlyCount "64"]
[EventDate "2024.03.27"]
[EventType "swiss"]
[EventCountry "ESP"]
[SourceTitle "playchess.com"]
[Source "ChessBase"]
[SourceQuality "1"]
[TimeControl "5400+30"]

1. e4 {[%emt 0:00:02]} e6 {[%emt 0:00:06]} 2. d4 {[%emt 0:00:05]} d5 {[%emt 0:00:07]} 3. Nc3 {[%emt 0:00:15]} Nf6 {[%emt 0:00:07]} 4. e5 {[%emt 0:00:04]} Nfd7 {[%emt 0:00:07]} 5. Nce2 {[%emt 0:00:05]} c5 {[%emt 0:00:57]} 6. c3 {[%emt 0:00:03]} Nc6 {[%emt 0:08:06]} 7. f4 {[%emt 0:00:49]} b5 {[%emt 0:00:45]} 8. Nf3 {[%emt 0:00:18]} b4 {[%emt 0:02:53]} 9. f5 {[%emt 0:04:13]} bxc3 {[%emt 0:14:25]} 10. bxc3 {[%emt 0:00:56]} cxd4 {[%emt 0:03:09]} 11. cxd4 {[%emt 0:02:48]} Bb4+ {[%emt 0:00:27]} 12. Kf2 {[%emt 0:01:19]} exf5 {[%emt 0:05:17]} 13. Nf4 {[%emt 0:02:22]} O-O {[%emt 0:00:57]} 14. Nxd5 {[%emt 0:02:22]} Nxd4 {[%emt 0:12:35]} 15. Nxd4 {[%emt 0:01:29]} Bc5 {[%emt 0:00:24]} 16. Be3 {[%emt 0:00:15]} Nxe5 {[%emt 0:02:22]} 17. Nxf5 {[%emt 0:05:40]} Bxf5 {[%emt 0:15:48]} 18. Bxc5 {[%emt 0:00:34]} Nd3+ {[%emt 0:00:03]} 19. Bxd3 {[%emt 0:00:06]} Qxd5 {[%emt 0:00:02]} 20. Bxf8 {[%emt 0:01:09]} Qd4+ {[%emt 0:00:27]} 21. Kg3 {[%emt 0:01:57]} g5 {[%emt 0:11:06]} 22. Qc1 {[%emt 0:02:41]} Qh4+ {[%emt 0:03:11]} 23. Kf3 {[%emt 0:00:06]} Bg4+ {[%emt 0:07:28]} 24. Ke4 {[%emt 0:07:30]} Re8+ {[%emt 0:03:30]} 25. Kd5 {[%emt 0:00:10]} Be6+ {[%emt 0:00:47]} 26. Ke5 {[%emt 0:00:57]} Bc8+ {[%emt 0:06:17]} 27. Kd5 {[%emt 0:02:16]} Bb7+ {[%emt 0:00:04]} 28. Kc5 {[%emt 0:00:31]} Re5+ {[%emt 0:00:40]} 29. Kd6 {[%emt 0:00:29]} Qd4+ {[%emt 0:00:03]} 30. Kc7 {[%emt 0:00:07]} Qb6+ {[%emt 0:00:28]} 31. Kd7 {[%emt 0:01:07]} Rd5+ {[%emt 0:00:07]} 32. Ke7 {[%emt 0:00:08]} Qd8# {[%emt 0:00:06]} 0-1

[Event "VIII Open Semana Santa 2024"]
[Site "San Vicente del Raspeig"]
[Date "2024.03.31"]
[Round "7.7"]
[White "Movsziszian, Karen"]
[Black "Muthaiah AL"]
[Result "0-1"]
[ECO "A12"]
[WhiteElo "2439"]
[BlackElo "2454"]
[Annotator "TA"]
[PlyCount "78"]
[EventDate "2024.03.27"]
[EventType "swiss"]
[EventCountry "ESP"]
[SourceTitle "playchess.com"]
[Source "ChessBase"]
[SourceQuality "1"]
[TimeControl "5400+30"]

{[%evp 19,78,0,0,-23,-27,-24,-12,-12,-11,-17,-21,-41,-24,-41,-36,-26,-34,-41,-12,-27,0,0,0,0,0,0,0,-31,-29,-52,-36,-46,-46,-58,-39,-58,-46,-174,-183,-210,-115,-276,-266,-270,-260,-493,-413,-1020,-998,-5314,-5314,-5306,-5306,-5297,-5119,-1537,-839,-1900,-616,-5373,-1849]} 1. g3 {[%emt 0:00:03]} d5 {[%emt 0:07:44]} 2. Nf3 {[%emt 0:00:06]} c6 {[%emt 0:00:18]} 3. Bg2 {[%emt 0:00:10]} Bf5 {[%emt 0:00:15]} 4. b3 {[%emt 0:01:34]} h6 {[%emt 0:00:47]} 5. Bb2 {[%emt 0:00:09]} e6 {[%emt 0:00:11]} 6. d3 {[%emt 0:00:40]} Nf6 {[%emt 0:00:10]} 7. Nbd2 {[%emt 0:03:36]} Be7 {[%emt 0:00:42]} 8. O-O {[%emt 0:00:21]} O-O {[%emt 0:00:29]} 9. c4 {[%emt 0:00:34]} a5 {[%emt 0:01:58]} 10. a3 {[%emt 0:00:03]} Bh7 {[%emt 0:05:48]} 11. Ra2 {[%emt 0:02:57]} Qb6 {[%emt 0:00:43]} 12. Qa1 {[%emt 0:00:58]} Nbd7 {[%emt 0:07:28]} 13. Ne5 {[%emt 0:00:48] The position is equal.} Rfd8 {[%emt 0:06:47]} 14. h3 {[%emt 0:11:13]} Bf8 {[%emt 0:08:00]} 15. g4 {[%emt 0:04:59]} Nxe5 {[%emt 0:04:49]} 16. Bxe5 {[%emt 0:00:32]} Nd7 {[%emt 0:00:17]} 17. Bc3 {[%emt 0:01:46]} Qa7 {[%emt 0:05:54]} 18. Kh1 {[%emt 0:13:04]} f6 {[%emt 0:07:17]} 19. f4 {[%emt 0:00:43]} Nc5 {[%emt 0:07:00]} 20. d4 {[%emt 0:05:06]} Ne4 {[%emt 0:04:15]} 21. Nxe4 {[%emt 0:03:55]} Bxe4 {[%emt 0:00:10]} 22. Bxe4 {[%emt 0:00:07]} dxe4 {[%emt 0:00:09]} 23. Rc2 {[%emt 0:09:39]} b5 {[%emt 0:04:06]} 24. a4 {[%emt 0:12:05]} bxc4 {[%emt 0:06:35]} 25. bxc4 {[%emt 0:00:21]} Bb4 {[%emt 0:01:03]} 26. e3 {[%emt 0:02:35]} c5 {[%emt 0:01:40]} 27. Bb2 {[%emt 0:04:12][%cal Og4g5]} cxd4 {[%emt 0:01:34]} 28. exd4 {[%emt 0:00:02]} ({White has to play} 28. Bxd4 $15 Bc5 29. Rd1) 28... e3 $19 {[%emt 0:02:24]} 29. Qd1 {[%emt 0:03:10] [#]} Qb7+ {[%emt 0:04:49]} (29... Bd2 $1 $19 {aiming for ...Qb7+.} 30. Kg2 Qa6) 30. Rg2 $2 {[%emt 0:07:19]} (30. Qf3 $17 Qxf3+ 31. Rxf3) 30... Bd2 {[%emt 0:01:06]} 31. Ba1 {[%emt 0:00:01][%cal Og4g5]} Qe4 {[%emt 0:02:49]} 32. g5 $2 {[%emt 0:01:08]} (32. Kh2) 32... fxg5 {[%emt 0:00:42] Strongly threatening ...Rf8.} (32... hxg5 33. Kh2 $19) 33. fxg5 {[%emt 0:00:02]} (33. Qg4 $142) 33... Rf8 {[%emt 0:01:25] Black is clearly winning.} 34. gxh6 {[%emt 0:03:03]} Rxf1+ {[%emt 0:00:57]} 35. Qxf1 {[%emt 0:00:02]} Rf8 {[%emt 0:00:27]} 36. h7+ {[%emt 0:03:39]} Qxh7 {[%emt 0:00:09]} 37. Qe2 {[%emt 0:00:09]} Qb1+ {[%emt 0:01:51]} 38. Kh2 {[%emt 0:00:54]} Rf1 {[%emt 0:01:12] [#] ( -> ...Rh1+)} (38... Qxa1 39. Rxg7+ Kxg7 40. Qg4+ Kf6 41. Qf3+ Kg6 42. Qg3+ Kf7 43. Qf3+ Ke7 44. Qb7+ Kf6 45. Qf3+ Ke7 46. Qb7+ Kf6 47. Qf3+ $11) 39. Qh5 {[%emt 0:03:18]} Qb8+ {[%emt 0:00:54] Weighted Error Value: White=1.01/Black=0.29 (precise) .  Loses game:     	White=1     	---        Mistake:       	White=3     	Black=1      Inaccurate:     	White=2     	Black=2      OK:         	White=7     	Black=8      Best:        	---       	Black=3} ({Inferior is} 39... Qxa1 40. Qe8+ Rf8 41. Qxe6+ Rf7 (41... Kh8 $2 42. Qe7 $18) 42. Qe8+ Rf8 43. Qe6+ (43. Qe5 Rf7 $11) 43... Rf7 (43... Kh8 $2 44. Qe5 $18) 44. Qe8+ Rf8 45. Qe6+ $11 (45. Qe5 Rf7 $11)) (39... Rh1+ $142 40. Kg3 Qe1+ (40... Qxa1 41. Qe8+ Kh7 42. Qh5+ Kg8 43. Qe8+ Kh7 44. Qh5+ Kg8 $11) 41. Kf4 Rf1+ (41... Qxa1 42. Qe8+ Kh7 43. Qg6+ Kh8 44. Qxg7#) 42. Ke5 Rf5+ (42... Qxa1 43. Qe8+ Rf8 44. Qe7 $11) 43. Qxf5 exf5) 0-1

[Event "VIII Open Semana Santa 2024"]
[Site "San Vicente del Raspeig"]
[Date "2024.03.31"]
[Round "7.8"]
[White "Minzer, Claudio Javier"]
[Black "Larkin, Vladyslav"]
[Result "1-0"]
[ECO "A41"]
[WhiteElo "2398"]
[BlackElo "2450"]
[Annotator "TA"]
[PlyCount "79"]
[EventDate "2024.03.27"]
[EventType "swiss"]
[EventCountry "ESP"]
[SourceTitle "playchess.com"]
[Source "ChessBase"]
[SourceQuality "1"]
[TimeControl "5400+30"]

{[%evp 9,79,45,70,65,62,83,62,72,71,64,60,53,80,84,99,91,86,83,99,92,108,76,68,61,189,176,231,174,239,242,232,168,190,197,277,301,522,533,723,713,848,597,612,610,591,562,576,657,714,675,956,750,868,912,849,880,810,752,863,857,921,870,1130,1135,982,882,1741,1672,1653,1580,1402,1368]} 1. Nf3 {[%emt 0:00:03]} d6 {[%emt 0:14:29]} 2. c4 {[%emt 0:01:43]} g6 {[%emt 0:00:58]} 3. Nc3 {[%emt 0:04:36]} Bg7 {[%emt 0:00:22]} 4. d4 {[%emt 0:02:59]} Bg4 {[%emt 0:01:35]} 5. e3 {[%emt 0:01:40]} e5 {[%emt 0:15:28]} 6. dxe5 {[%emt 0:06:44]} dxe5 {[%emt 0:00:40]} 7. Qxd8+ {[%emt 0:00:46]} Kxd8 {[%emt 0:00:04]} 8. Ng5 {[%emt 0:01:13] White is slightly better.} Nh6 {[%emt 0:00:14]} 9. h3 {[%emt 0:06:17]} Bd7 {[%emt 0:00:25]} 10. b3 {[%emt 0:04:59]} a5 {[%emt 0:03:18]} 11. Bb2 {[%emt 0:02:49]} a4 {[%emt 0:15:44]} 12. Rd1 {[%emt 0:02:53]} axb3 {[%emt 0:00:47]} 13. axb3 {[%emt 0:00:07]} Na6 {[%emt 0:00:39]} 14. Be2 {[%emt 0:09:11] White has more active pieces.} Kc8 {[%emt 0:04:44]} 15. O-O {[%emt 0:09:27][%cal Bh1f1,Bf1d1,Bd1d5,Bd5d7][%mdl 32]} f6 {[%emt 0:17:38]} 16. Nge4 {[%emt 0:02:02]} Re8 {[%emt 0:07:18] This costs Black the game.} (16... Nf7 $14) 17. Ra1 $18 {[%emt 0:03:19]} Kb8 {[%emt 0:01:43]} (17... f5 $142) 18. Rfd1 {[%emt 0:01:22]} Be6 {[%emt 0:03:54]} (18... Bc6 $142 19. Nd5 Bxd5 20. Rxd5 (20. cxd5 Nf7 $18) 20... Nf5) 19. Nd5 {[%emt 0:01:26]} Ng8 {[%emt 0:00:20]} 20. c5 {[%emt 0:04:40][%cal Bc4c5,Bc5c6][%mdl 32]} Bxd5 {[%emt 0:00:50]} 21. Rxd5 {[%emt 0:00:03][%cal Oc5c6] aiming for c6!} Ne7 {[%emt 0:00:05]} (21... f5 $142) 22. Rd7 {[%emt 0:00:48][%cal Oc5c6] Strongly threatening c6!} Kc8 $2 {[%emt 0:09:16] [#]} (22... Bh8 {keeps fighting.} 23. Bc4 Nc6 24. Rxh7 Rd8) 23. c6 $1 {[%emt 0:01:54][%mdl 512] White is clearly winning.} Ra7 {[%emt 0:00:35]} (23... bxc6 24. Rdd1) 24. Bxa6 {[%emt 0:16:13]} Rxa6 {[%emt 0:00:42]} 25. Rxa6 {[%emt 0:00:10]} bxa6 {[%emt 0:00:14]} 26. Ba3 {[%emt 0:00:03]} f5 {[%emt 0:00:25]} 27. Rxe7 {[%emt 0:02:55]} Rxe7 {[%emt 0:00:23]} 28. Bxe7 {[%emt 0:00:05]} fxe4 {[%emt 0:00:02][%mdl 4096] Endgame. KB-KB} 29. Kf1 {[%emt 0:00:19]} a5 {[%emt 0:01:23]} 30. Ke2 {[%emt 0:00:38]} Kb8 {[%emt 0:00:17] [#]} 31. Bc5 $1 {[%emt 0:00:07]} Bf6 {[%emt 0:00:22]} 32. Kd2 {[%emt 0:00:13]} Kc8 {[%emt 0:00:22]} 33. Kc3 {[%emt 0:00:07]} Kd8 {[%emt 0:00:11]} 34. Kc4 {[%emt 0:00:44]} Bh4 {[%emt 0:00:09]} 35. Kd5 {[%emt 0:01:22]} Bxf2 {[%emt 0:00:16]} 36. Kxe5 {[%emt 0:00:08]} Ke8 {[%emt 0:01:50]} 37. Kxe4 {[%emt 0:00:06]} Kf7 {[%emt 0:00:14] [#]} 38. Bd6 $1 {[%emt 0:00:38][%mdl 512]} Ke6 {[%emt 0:00:46]} 39. Bxc7 {[%emt 0:00:08]} Be1 {[%emt 0:00:04]} 40. Bf4 {[%emt 0:00:57] Weighted Error Value: White=0.26 (precise) /Black=0.39.  Mistake:       	---       	Black=5      Inaccurate:     	---       	Black=2      OK:         	White=8     	Black=6      Best:        	White=2     	Black=1      Brilliant:      	White=1     	---} 1-0